fUSD/lending_fUSD_20240616
["ID","MTS","AMOUNT","RATE_DAILY","PERIOD"]
[329667443,1718555451414,-849.99999997,0.0002761,2]
[329667446,1718555451433,-1861.4852235,0.0002761,2]
[329667448,1718555451451,-836.45509005,0.0002776,2]
[329667451,1718555451479,-619.69677273,0.0002776,2]
[329667452,1718555451501,-284.2125,0.0002776,2]
[329667453,1718555451514,-257.78666486,0.0002776,2]
[329667454,1718555451551,-1900.23615409,0.0002776,2]
[329667455,1718555451562,-31308.39435964,0.00027762,5]
[329667515,1718555454864,-6596.28060567,0.00016406,2]
[329667517,1718555454892,-3016.97741687,0.00016406,2]
[329667519,1718555454904,-20286.29635735,0.00016406,2]
[329667520,1718555454915,-622.44356445,0.00027662,2]
[329667522,1718555454926,-330.42782796,0.00027662,2]
[329667523,1718555454957,-630.41108301,0.0002776,2]
[329667526,1718555454991,-538.14719225,0.0002776,2]
[329667527,1718555455015,-7432.2410971,0.0002776,2]
[329667530,1718555455092,-1643.05546101,0.0002776,2]
[329667532,1718555455147,-320.87979929,0.0002776,2]
[329667533,1718555455174,-19.28416913,0.0002776,2]
[329667536,1718555455200,-158.71096478,0.0002776,2]
[329667537,1718555455237,-150.01,0.0002776,2]
[329667539,1718555455261,-6270.41290548,0.00027762,5]
[329667551,1718555455564,-192.88194249,0.0002776,2]
[329667553,1718555455577,-258.16431012,0.0002776,2]
[329667555,1718555455599,-65800.9537474,0.00027762,5]
[329667593,1718555456605,-863.23680327,0.00027762,5]
[329667595,1718555456644,-23123.36076885,0.00027762,5]
[329668036,1718556060746,162.6648809,0.00025786,30]
[329668067,1718556633590,-158.71096478,0.00016204,2]
[329668070,1718556633629,-162.99818709,0.00016205,2]
[329668072,1718556633668,-1468.0,0.00016303,2]
[329668074,1718556633689,-187.0,0.00016304,2]
[329668075,1718556633700,-4285.6054,0.00016306,2]
[329668076,1718556633712,-2840.56553383,0.00016406,2]
[329668077,1718556633736,-499.99,0.00019452,2]
[329668078,1718556633762,-150.0,0.00019699,2]
[329668079,1718556633793,-3898.38718173,0.0002,2]
[329668080,1718556633805,-337.79423988,0.00020809,2]
[329668081,1718556634488,-102.79576012,0.00020809,2]
[329668082,1718556634547,-147.6914957,0.0002211,2]
[329668083,1718556634562,-78.13451186,0.0002211,2]
[329668084,1718556634581,-246.38,0.00022542,2]
[329668085,1718556634600,-94.02556487,0.00022874,2]
[329668086,1718556634632,-155.97443513,0.00022874,2]
[329668087,1718556634647,-397.97382894,0.00022887,2]
[329668088,1718556634668,-387.25617106,0.00022887,2]
[329668089,1718556634681,-200.0,0.00023,2]
[329668090,1718556634697,-440.59,0.00023073,2]
[329668091,1718556634709,-318.73,0.0002357,2]
[329668092,1718556634720,-2255.86640387,0.00023631,2]
[329668093,1718556634738,-5019.36530213,0.00023631,2]
[329668094,1718556634772,-13953.482235,0.00023631,2]
[329668095,1718556634788,-333.458746,0.00023631,2]
[329668096,1718556634799,-161.258662,0.00023631,2]
[329668097,1718556634824,-208.824229,0.00023631,2]
[329668098,1718556634836,-543.60865821,0.00023631,2]
[329668099,1718556634870,-811.05669613,0.00023631,2]
[329668100,1718556634882,-641.37290133,0.00023631,2]
[329668101,1718556634896,-4115.91581733,0.00023631,2]
[329668102,1718556634911,-250.0,0.00023664,2]
[329668103,1718556634928,-202.011918,0.000237,2]
[329668104,1718556634939,-3853.5414933,0.00023926,2]
[329668105,1718556634952,-472.04,0.00023926,2]
[329668106,1718556634967,-418.9295176,0.00023926,2]
[329668107,1718556634997,-319.5176318,0.00023926,2]
[329668108,1718556635046,-2211.2030633,0.00023926,2]
[329668109,1718556635082,-333.458746,0.00023926,2]
[329668110,1718556635116,-161.258662,0.00023926,2]
[329668111,1718556635151,-1909.0395287,0.00023926,2]
[329668112,1718556635270,-10939.22593552,0.00023926,2]
[329668114,1718556635300,-1105.21677078,0.00023926,2]
[329668115,1718556635314,-208.824229,0.00023926,2]
[329668117,1718556635340,-637.10640475,0.00023926,2]
[329668119,1718556635357,-1565.31339387,0.00023926,2]
[329668122,1718556635440,-3909.53427438,0.00023926,2]
[329668124,1718556635478,-172.0,0.00024,2]
[329668126,1718556635491,-7275.231706,0.00024222,2]
[329668128,1718556635502,-161.258662,0.00024222,2]
[329668130,1718556635528,-333.458746,0.00024222,2]
[329668131,1718556635560,-13953.482235,0.00024222,2]
[329668132,1718556635589,-208.824229,0.00024222,2]
[329668133,1718556635606,-6111.954073,0.00024222,2]
[329668134,1718556635619,-167.16,0.00024356,2]
[329668135,1718556635631,-698.84,0.00024384,2]
[329668136,1718556635642,-184.34,0.00024384,2]
[329668137,1718556635653,-7275.231706,0.00024517,2]
[329668138,1718556635665,-161.258662,0.00024517,2]
[329668139,1718556635677,-333.458746,0.00024517,2]
[329668140,1718556635702,-13953.482235,0.00024517,2]
[329668141,1718556635714,-208.824229,0.00024517,2]
[329668142,1718556635730,-6111.954073,0.00024517,2]
[329668143,1718556635741,-180.0,0.00024622,2]
[329668144,1718556635778,-572.18,0.00024802,3]
[329668145,1718556635801,-605.28089426,0.00024804,2]
[329668146,1718556635824,-7275.231706,0.00024812,2]
[329668147,1718556635837,-161.258662,0.00024812,2]
[329668148,1718556635860,-333.458746,0.00024812,2]
[329668149,1718556635884,-208.824229,0.00024812,2]
[329668150,1718556635895,-13953.482235,0.00024812,2]
[329668151,1718556635907,-6111.954073,0.00024812,2]
[329668152,1718556635918,-155.0,0.000249,2]
[329668153,1718556635958,-6806.05267092,0.00024999,2]
[329668154,1718556635969,-2212.32042467,0.00025,2]
[329668155,1718556635980,-2870.59162436,0.00025,2]
[329668156,1718556635992,-1278.56167909,0.00025,2]
[329668157,1718556636004,-630.41108301,0.00025,2]
[329668158,1718556636020,-7432.2410971,0.00025,2]
[329668159,1718556636030,-1983.21942943,0.00025,2]
[329668160,1718556636044,-793.0,0.000251,4]
[329668161,1718556636057,-2571.0,0.000251,4]
[329668162,1718556636070,-998.86,0.000251,2]
[329668163,1718556636084,-171.03,0.00025142,2]
[329668164,1718556636095,-1000.0,0.00025142,2]
[329668165,1718556636105,-1000.0,0.00025205,2]
[329668166,1718556636139,-246.38,0.00025281,2]
[329668167,1718556636157,-440.59,0.00025336,2]
[329668172,1718556636347,-200.0,0.000257,2]
[329668174,1718556636364,-785.23,0.00025748,2]
[329668176,1718556636394,-169.36899405,0.00025786,2]
[329668179,1718556636412,-1205.49676765,0.00025786,2]
[329668180,1718556636424,-1048.15420428,0.00025786,2]
[329668182,1718556636436,-155.0,0.00025786,2]
[329668183,1718556636456,-160.63664696,0.00025786,2]
[329668185,1718556636468,-447.56672219,0.00025786,2]
[329668188,1718556636483,-500.0,0.00025786,2]
[329668190,1718556636505,-417.93,0.00025863,2]
[329668192,1718556636525,-417.93,0.00025863,2]
[329668195,1718556636553,-380.5296931,0.00026,2]
[329668196,1718556636578,-150.0,0.00026137,2]
[329668197,1718556636591,-164.35,0.00026137,2]
[329668198,1718556636611,-300.0,0.00026137,2]
[329668199,1718556636636,-157.23,0.00026137,2]
[329668200,1718556636647,-423.01,0.00026137,2]
[329668201,1718556636658,-150.0,0.00026137,2]
[329668202,1718556636672,-166.21,0.00026137,2]
[329668203,1718556636683,-526.85,0.00026137,2]
[329668204,1718556636694,-500.0,0.00026532,2]
[329668205,1718556636704,-150.07,0.00026758,2]
[329668206,1718556636724,-671.578,0.00026786,2]
[329668207,1718556636738,-417.93,0.00026822,2]
[329668208,1718556636753,-417.93,0.00026822,2]
[329668209,1718556636776,-417.93,0.00026822,2]
[329668210,1718556636801,-439.68,0.00026822,2]
[329668211,1718556636812,-123592.77,0.000269,6]
[329668212,1718556636824,-739.62,0.000269,6]
[329668213,1718556636835,-310.2,0.000269,6]
[329668214,1718556636869,-151.0,0.00026926,5]
[329668215,1718556636892,-1053.13,0.00026959,2]
[329668216,1718556636906,-846.02,0.00026959,2]
[329668217,1718556636927,-300.0,0.00026959,2]
[329668218,1718556636943,-164.41,0.00026959,2]
[329668219,1718556636959,-150.0,0.00026959,2]
[329668220,1718556636975,-707.48,0.00026959,2]
[329668221,1718556636998,-150.0,0.00026959,2]
[329668222,1718556637060,-707.48,0.00026959,2]
[329668223,1718556637076,-150.0,0.00026959,2]
[329668224,1718556637096,-164.41,0.00026959,2]
[329668225,1718556637114,-150.0,0.00026959,2]
[329668226,1718556637143,-164.23,0.00026959,2]
[329668227,1718556637157,-150.0,0.00026959,2]
[329668228,1718556637173,-150.0,0.00026959,2]
[329668229,1718556637212,-1000.0,0.00027,7]
[329668230,1718556637244,-1000.0,0.00027,7]
[329668231,1718556637256,-1031.0,0.00027,7]
[329668232,1718556637268,-1000.0,0.00027,8]
[329668233,1718556637281,-1000.0,0.00027,8]
[329668234,1718556637300,-1000.0,0.00027,8]
[329668235,1718556637324,-1252.0,0.00027,7]
[329668236,1718556637347,-1000.0,0.00027,7]
[329668237,1718556637360,-1000.0,0.00027,7]
[329668238,1718556637392,-586.0,0.00027,7]
[329668239,1718556637405,-1000.0,0.00027,7]
[329668240,1718556637421,-1000.0,0.00027,7]
[329668241,1718556637439,-1000.0,0.00027,12]
[329668242,1718556637468,-17812.44666351,0.00027199,2]
[329668243,1718556637481,-1189.11430796,0.000272,2]
[329668244,1718556637492,-1000.0,0.000272,7]
[329668245,1718556637507,-1000.0,0.000272,7]
[329668246,1718556637522,-156.75915456,0.00027205,2]
[329668247,1718556637541,-460.83958973,0.00027205,2]
[329668248,1718556637560,-150.0,0.00027397,2]
[329668249,1718556637571,-531.04,0.00027397,10]
[329668250,1718556637590,-1000.0,0.000275,7]
[329668251,1718556637603,-1000.0,0.000275,7]
[329668252,1718556637628,-144463.1546,0.000275,2]
[329668253,1718556637642,-26430.1587,0.000275,2]
[329668254,1718556637654,-150.0,0.00027509,2]
[329668255,1718556637673,-500.0,0.00027539,2]
[329668256,1718556637688,-200.0,0.00027539,2]
[329668257,1718556637707,-1299.86888285,0.0002755,17]
[329668258,1718556637737,-156.01393959,0.0002759,2]
[329668259,1718556637757,-500.0,0.00027598,8]
[329668260,1718556637771,-500.0,0.00027598,8]
[329668261,1718556637792,-500.0,0.00027598,8]
[329668262,1718556637804,-500.0,0.00027598,8]
[329668263,1718556637822,-751.0,0.00027598,8]
[329668264,1718556637837,-751.0,0.00027598,8]
[329668265,1718556637857,-500.0,0.00027598,8]
[329668266,1718556637884,-500.0,0.00027598,8]
[329668267,1718556637909,-500.0,0.00027598,8]
[329668268,1718556637923,-500.0,0.00027598,8]
[329668269,1718556637935,-385.99,0.00027598,8]
[329668270,1718556637953,-500.0,0.00027598,8]
[329668271,1718556637976,-500.0,0.00027598,8]
[329668272,1718556638003,-1882.48,0.00027598,8]
[329668273,1718556638014,-1882.48,0.00027598,8]
[329668274,1718556638032,-442.11911797,0.00027598,8]
[329668275,1718556638046,-500.0,0.00027598,8]
[329668276,1718556638057,-500.0,0.00027598,8]
[329668277,1718556638070,-1360.55,0.00027598,8]
[329668278,1718556638082,-1360.55,0.00027598,8]
[329668279,1718556638095,-500.0,0.00027598,8]
[329668280,1718556638113,-500.0,0.00027598,8]
[329668281,1718556638127,-500.0,0.00027598,8]
[329668282,1718556638145,-500.0,0.00027598,8]
[329668283,1718556638160,-500.0,0.00027598,8]
[329668284,1718556638173,-500.0,0.00027598,8]
[329668285,1718556638184,-500.0,0.00027598,8]
[329668286,1718556638196,-500.0,0.00027598,8]
[329668287,1718556638210,-500.0,0.00027598,8]
[329668288,1718556638239,-500.0,0.00027598,8]
[329668289,1718556638253,-500.0,0.00027598,8]
[329668290,1718556638266,-500.0,0.00027599,8]
[329668291,1718556638278,-500.0,0.00027599,8]
[329668292,1718556638291,-192.47309227,0.00027599,8]
[329668293,1718556638304,-500.0,0.00027599,8]
[329668294,1718556638323,-500.0,0.00027599,8]
[329668295,1718556638368,-500.0,0.00027599,8]
[329668296,1718556638393,-500.0,0.00027599,8]
[329668297,1718556638431,-500.0,0.00027599,8]
[329668298,1718556638444,-500.0,0.00027599,8]
[329668299,1718556638460,-500.0,0.00027599,8]
[329668300,1718556638473,-266.36117964,0.00027599,8]
[329668301,1718556638493,-500.0,0.00027599,8]
[329668302,1718556638504,-500.0,0.00027599,8]
[329668303,1718556638516,-500.0,0.00027599,8]
[329668304,1718556638535,-500.0,0.00027599,8]
[329668305,1718556638554,-183.72095217,0.00027599,8]
[329668306,1718556638565,-500.0,0.00027599,8]
[329668307,1718556638583,-164.21385731,0.00027599,8]
[329668308,1718556638606,-500.0,0.00027599,8]
[329668309,1718556638617,-500.0,0.00027599,8]
[329668310,1718556638630,-500.0,0.00027599,8]
[329668311,1718556638640,-232.7159507,0.00027599,8]
[329668312,1718556638655,-500.0,0.00027599,8]
[329668313,1718556638665,-500.0,0.00027599,8]
[329668314,1718556638676,-500.0,0.00027599,8]
[329668315,1718556638692,-500.0,0.00027599,8]
[329668316,1718556638703,-586.17,0.00027599,8]
[329668317,1718556638715,-586.17,0.00027599,8]
[329668318,1718556638728,-500.0,0.00027599,8]
[329668319,1718556638739,-500.0,0.00027599,8]
[329668320,1718556638750,-500.0,0.00027599,8]
[329668322,1718556638761,-500.0,0.00027599,8]
[329668324,1718556638773,-500.0,0.00027599,8]
[329668325,1718556638818,-488.15526029,0.00027599,8]
[329668326,1718556638833,-500.0,0.00027599,8]
[329668327,1718556638857,-500.0,0.00027599,8]
[329668328,1718556638876,-500.0,0.00027599,8]
[329668329,1718556638900,-599.85,0.00027599,8]
[329668330,1718556638912,-226.50782399,0.00027599,7]
[329668331,1718556638937,-268.62,0.00027599,8]
[329668332,1718556638948,-420.0394136,0.00027599,8]
[329668333,1718556638960,-500.0,0.00027599,8]
[329668334,1718556638971,-500.0,0.00027599,8]
[329668335,1718556638987,-500.0,0.00027599,8]
[329668336,1718556638999,-500.0,0.00027599,8]
[329668337,1718556639035,-500.0,0.00027599,8]
[329668338,1718556639050,-500.0,0.00027599,8]
[329668339,1718556639105,-500.0,0.00027599,8]
[329668340,1718556639124,-500.0,0.00027599,8]
[329668341,1718556639152,-500.0,0.00027599,8]
[329668342,1718556639177,-500.0,0.00027599,8]
[329668343,1718556639224,-568.88,0.00027599,8]
[329668344,1718556639262,-500.0,0.00027599,8]
[329668345,1718556639289,-500.0,0.00027599,8]
[329668346,1718556639326,-424.95201097,0.00027599,8]
[329668347,1718556639394,-551.64,0.00027599,8]
[329668348,1718556639406,-500.0,0.00027599,8]
[329668349,1718556639462,-551.64,0.00027599,8]
[329668350,1718556639509,-500.0,0.00027599,8]
[329668351,1718556639534,-500.0,0.00027599,8]
[329668354,1718556639545,-561.58766205,0.00027599,8]
[329668355,1718556639576,-1657.98,0.00027599,8]
[329668356,1718556639590,-1657.98,0.00027599,8]
[329668359,1718556639609,-360.85202148,0.00027599,8]
[329668362,1718556639647,-500.0,0.00027599,8]
[329668365,1718556639659,-500.0,0.00027599,8]
[329668368,1718556639676,-500.0,0.00027599,8]
[329668371,1718556639728,-500.0,0.00027599,8]
[329668375,1718556639760,-500.0,0.00027599,8]
[329668378,1718556639820,-500.0,0.00027599,8]
[329668381,1718556639839,-500.0,0.00027599,8]
[329668384,1718556639883,-500.0,0.00027599,8]
[329668387,1718556639927,-1306.65,0.00027599,8]
[329668392,1718556639961,-500.0,0.00027599,8]
[329668395,1718556639975,-1306.65,0.00027599,8]
[329668397,1718556640040,-500.0,0.00027599,8]
[329668399,1718556640074,-779.95,0.00027599,8]
[329668400,1718556640123,-779.95,0.00027599,8]
[329668401,1718556640139,-500.0,0.00027599,8]
[329668402,1718556640215,-450.31,0.00027599,8]
[329668403,1718556640244,-725.87,0.00027599,8]
[329668404,1718556640259,-725.87,0.00027599,8]
[329668405,1718556640274,-500.0,0.00027599,8]
[329668406,1718556640288,-500.0,0.00027599,8]
[329668407,1718556640351,-320.94,0.00027599,8]
[329668408,1718556640386,-515.96,0.00027599,8]
[329668410,1718556640415,-515.96,0.00027599,8]
[329668411,1718556640468,-1995.59,0.00027599,8]
[329668412,1718556640487,-1995.59,0.00027599,8]
[329668413,1718556640512,-500.0,0.00027599,8]
[329668414,1718556640530,-500.0,0.00027599,8]
[329668415,1718556640554,-500.0,0.00027599,8]
[329668416,1718556640575,-523.51,0.00027599,8]
[329668417,1718556640617,-177.93450478,0.00027599,8]
[329668418,1718556640640,-751.0,0.00027599,8]
[329668419,1718556640664,-500.0,0.00027599,8]
[329668420,1718556640676,-500.0,0.00027599,8]
[329668421,1718556640732,-500.0,0.00027599,8]
[329668422,1718556640778,-500.0,0.00027599,8]
[329668423,1718556640806,-500.0,0.00027599,8]
[329668424,1718556640819,-500.0,0.00027599,8]
[329668425,1718556640843,-500.0,0.00027599,8]
[329668426,1718556640876,-500.0,0.00027599,8]
[329668427,1718556640923,-500.0,0.00027599,8]
[329668428,1718556640936,-500.0,0.00027599,8]
[329668429,1718556640962,-500.0,0.00027599,8]
[329668430,1718556640974,-500.0,0.00027599,8]
[329668431,1718556640989,-500.0,0.00027599,8]
[329668432,1718556641011,-500.0,0.00027599,8]
[329668433,1718556641056,-505.36,0.00027599,8]
[329668434,1718556641085,-505.36,0.00027599,8]
[329668435,1718556641109,-500.0,0.00027599,8]
[329668436,1718556641143,-500.0,0.00027599,8]
[329668437,1718556641153,-500.0,0.00027599,8]
[329668438,1718556641164,-500.0,0.00027599,8]
[329668439,1718556641185,-201.08749999,0.00027599,8]
[329668440,1718556641203,-500.0,0.00027599,8]
[329668441,1718556641232,-500.0,0.00027599,8]
[329668442,1718556641272,-500.0,0.00027599,8]
[329668443,1718556641282,-1882.48,0.00027599,8]
[329668444,1718556641324,-500.0,0.00027599,8]
[329668445,1718556641334,-500.0,0.00027599,8]
[329668446,1718556641374,-2614.79,0.00027599,8]
[329668447,1718556641395,-2614.79,0.00027599,8]
[329668448,1718556641422,-2614.79,0.00027599,8]
[329668449,1718556641436,-500.0,0.00027599,8]
[329668450,1718556641447,-500.0,0.00027599,8]
[329668451,1718556641458,-500.0,0.00027599,8]
[329668452,1718556641492,-271.20393509,0.00027599,8]
[329668453,1718556641512,-500.0,0.00027599,8]
[329668455,1718556641524,-500.0,0.00027599,8]
[329668457,1718556641561,-324.07554706,0.00027599,2]
[329668459,1718556641587,-500.0,0.00027599,8]
[329668462,1718556641607,-500.0,0.00027599,8]
[329668465,1718556641662,-500.0,0.00027599,8]
[329668467,1718556641676,-500.0,0.00027599,8]
[329668469,1718556641716,-554.05,0.00027599,8]
[329668470,1718556641730,-554.05,0.00027599,8]
[329668473,1718556641750,-554.05,0.00027599,8]
[329668475,1718556641763,-500.0,0.00027599,8]
[329668477,1718556641774,-1360.55,0.00027599,8]
[329668479,1718556641785,-565.84,0.00027599,8]
[329668480,1718556641797,-500.0,0.00027599,8]
[329668484,1718556641832,-172.22256923,0.00027599,8]
[329668485,1718556641884,-500.0,0.00027599,8]
[329668486,1718556641915,-500.0,0.00027599,8]
[329668487,1718556641955,-500.0,0.00027599,8]
[329668488,1718556641977,-788.97,0.00027599,8]
[329668489,1718556641988,-788.97,0.00027599,8]
[329668490,1718556642012,-788.97,0.00027599,8]
[329668491,1718556642039,-360.75659754,0.00027599,2]
[329668492,1718556642060,-167.1472204,0.00027599,2]
[329668493,1718556642098,-501.59089135,0.00027599,8]
[329668494,1718556642117,-500.0,0.00027599,8]
[329668495,1718556642144,-500.0,0.00027599,8]
[329668496,1718556642168,-230.64648123,0.00027599,8]
[329668497,1718556642186,-250000.0,0.000276,2]
[329668498,1718556642201,-440.59,0.000276,2]
[329668499,1718556642211,-568.06,0.0002766,8]
[329668500,1718556642236,-500.0,0.0002766,8]
[329668501,1718556642248,-500.0,0.0002766,8]
[329668502,1718556642274,-256.02,0.0002766,8]
[329668503,1718556642288,-500.0,0.0002766,2]
[329668504,1718556642315,-500.0,0.0002766,2]
[329668505,1718556642331,-189.06330267,0.0002766,8]
[329668506,1718556642369,-500.0,0.0002766,2]
[329668508,1718556642404,-500.0,0.0002766,2]
[329668512,1718556642457,-500.0,0.0002766,8]
[329668513,1718556642501,-332.10831316,0.0002766,8]
[329668515,1718556642523,-500.0,0.0002766,8]
[329668516,1718556642537,-500.0,0.0002766,8]
[329668517,1718556642566,-500.0,0.0002766,8]
[329668518,1718556642616,-500.0,0.0002766,8]
[329668519,1718556642627,-180.48036902,0.0002766,2]
[329668520,1718556642638,-186.81298389,0.00027661,2]
[329668521,1718556642649,-2010.41094654,0.00027661,2]
[329668522,1718556642669,-586.17,0.00027661,8]
[329668523,1718556642690,-500.0,0.00027661,8]
[329668524,1718556642702,-500.0,0.00027661,8]
[329668525,1718556642714,-500.0,0.00027661,8]
[329668526,1718556642727,-1657.98,0.00027661,8]
[329668527,1718556642739,-500.0,0.00027661,8]
[329668528,1718556642757,-1306.65,0.00027661,8]
[329668529,1718556642768,-1995.59,0.00027661,8]
[329668530,1718556642778,-500.0,0.00027661,8]
[329668531,1718556642806,-500.0,0.00027661,8]
[329668532,1718556642838,-1776.77436129,0.00027661,2]
[329668533,1718556642857,-500.0,0.00027661,8]
[329668534,1718556642891,-505.36,0.00027661,8]
[329668535,1718556642904,-500.0,0.00027661,8]
[329668536,1718556642915,-500.0,0.00027661,8]
[329668537,1718556642926,-500.0,0.00027661,8]
[329668538,1718556642951,-500.0,0.00027661,8]
[329668539,1718556642966,-500.0,0.00027661,8]
[329668540,1718556642977,-2010.41094645,0.00027661,2]
[329668541,1718556642994,-2010.41094645,0.00027661,2]
[329668542,1718556643020,-2010.41094645,0.00027661,2]
[329668543,1718556643049,-2010.41094645,0.00027661,2]
[329668544,1718556643064,-2010.41094645,0.00027661,2]
[329668545,1718556643092,-1776.77436129,0.00027662,2]
[329668546,1718556643122,-2010.41094645,0.00027662,2]
[329668547,1718556643164,-2010.41094645,0.00027662,2]
[329668548,1718556643176,-2010.41094645,0.00027662,2]
[329668549,1718556643194,-2010.41094645,0.00027662,2]
[329668550,1718556643220,-2010.41094645,0.00027662,2]
[329668551,1718556643302,-2010.41094645,0.00027662,2]
[329668552,1718556643314,-1776.77436129,0.00027662,2]
[329668553,1718556643353,-154.80749522,0.00027669,2]
[329668554,1718556643392,-150.0,0.00027681,2]
[329668555,1718556643432,-2000.0,0.000277,2]
[329668556,1718556643485,-2000.0,0.000277,2]
[329668557,1718556643512,-2500.0,0.000277,2]
[329668558,1718556643550,-291.0,0.000277,2]
[329668559,1718556643585,-160.0,0.000277,2]
[329668560,1718556643632,-200.0,0.000277,2]
[329668561,1718556643677,-2000.0,0.000277,2]
[329668562,1718556643754,-150.0,0.000277,5]
[329668563,1718556643833,-500.0,0.0002775,8]
[329668564,1718556643844,-500.0,0.0002775,8]
[329668565,1718556643857,-500.0,0.0002775,8]
[329668566,1718556643877,-500.0,0.0002775,8]
[329668567,1718556643902,-497.99523926,0.0002775,8]
[329668568,1718556643953,-500.0,0.0002775,8]
[329668569,1718556643977,-232.84022362,0.0002775,8]
[329668570,1718556644023,-500.0,0.0002775,8]
[329668571,1718556644041,-500.0,0.0002775,8]
[329668572,1718556644052,-500.0,0.0002775,8]
[329668573,1718556644072,-500.0,0.0002775,8]
[329668574,1718556644083,-603.09607456,0.0002775,8]
[329668575,1718556644097,-500.0,0.0002775,8]
[329668576,1718556644116,-500.0,0.0002775,8]
[329668577,1718556644172,-624.98,0.0002775,8]
[329668578,1718556644208,-500.0,0.0002775,8]
[329668579,1718556644234,-500.0,0.0002775,8]
[329668580,1718556644247,-500.0,0.0002775,8]
[329668581,1718556644273,-500.0,0.0002775,8]
[329668582,1718556644304,-500.0,0.0002775,8]
[329668583,1718556644316,-500.0,0.0002775,8]
[329668584,1718556644330,-500.0,0.0002775,8]
[329668585,1718556644358,-551.64,0.0002775,8]
[329668586,1718556644381,-282.0527833,0.0002775,8]
[329668587,1718556644404,-500.0,0.0002775,8]
[329668588,1718556644424,-779.95,0.0002775,8]
[329668589,1718556644445,-725.87,0.0002775,8]
[329668590,1718556644473,-515.96,0.0002775,8]
[329668592,1718556644484,-500.0,0.0002775,8]
[329668593,1718556644497,-500.0,0.0002775,8]
[329668595,1718556644510,-3838.1303969,0.00027751,2]
[329668597,1718556644523,-31929.8599341,0.00027751,2]
[329668599,1718556644535,-485.25416902,0.00027751,2]
[329668601,1718556644546,-1451.7447115,0.00027751,2]
[329668603,1718556644557,-844.79301962,0.00027759,2]
[329668604,1718556644567,-7424.28604623,0.00027759,2]
[329668606,1718556644582,-586.17,0.00027759,8]
[329668608,1718556644594,-500.0,0.00027759,8]
[329668611,1718556644607,-1657.98,0.00027759,8]
[329668612,1718556644618,-500.0,0.00027759,8]
[329668614,1718556644629,-150.0,0.00027759,2]
[329668616,1718556644641,-500.0,0.00027759,8]
[329668618,1718556644656,-1306.65,0.00027759,8]
[329668620,1718556644669,-500.0,0.00027759,8]
[329668622,1718556644680,-500.0,0.00027759,8]
[329668623,1718556644691,-1995.59,0.00027759,8]
[329668625,1718556644709,-751.0,0.00027759,8]
[329668627,1718556644724,-500.0,0.00027759,8]
[329668629,1718556644735,-543.12,0.00027759,8]
[329668631,1718556644749,-189.04,0.00027759,8]
[329668633,1718556644760,-505.36,0.00027759,8]
[329668634,1718556644771,-500.0,0.00027759,8]
[329668636,1718556644784,-500.0,0.00027759,8]
[329668638,1718556644800,-1882.48,0.00027759,8]
[329668639,1718556644813,-2614.79,0.00027759,8]
[329668640,1718556644826,-500.0,0.00027759,8]
[329668641,1718556644840,-554.05,0.00027759,8]
[329668642,1718556644857,-1360.55,0.00027759,8]
[329668643,1718556644883,-788.97,0.00027759,8]
[329668644,1718556644894,-500.0,0.00027759,8]
[329668645,1718556644921,-713.79795578,0.0002776,2]